bitfinex/quotes_BTCUSD_20230103
["timestamp","ask_amount","ask_price","bid_price","bid_amount"]
[1672730755853,3.89035743,16747.0,16746.0,1.41093216]
[1672730756350,3.89035743,16747.0,16746.0,0.70837062]
[1672730756606,3.89035743,16747.0,16746.0,0.00837062]
[1672730756849,3.93648243,16747.0,16746.0,0.00837062]
[1672730762846,3.93648243,16747.0,16746.0,0.00715985]
[1672730762847,4.36070094,16747.0,16746.0,0.00715985]
[1672730763088,3.93648243,16747.0,16746.0,0.00715985]
[1672730766354,3.99814706,16747.0,16746.0,0.00715985]
[1672730766566,3.93648243,16747.0,16746.0,0.00715985]
[1672730773872,3.91853048,16747.0,16746.0,0.00715985]
[1672730774133,3.93648243,16747.0,16746.0,0.00715985]
[1672730775172,3.95202206,16747.0,16746.0,0.00715985]
[1672730775406,3.93648243,16747.0,16746.0,0.00715985]
[1672730776471,3.99814706,16747.0,16746.0,0.00715985]
[1672730776697,3.89035743,16747.0,16746.0,0.00715985]
[1672730777216,3.99814706,16747.0,16746.0,0.00715985]
[1672730781290,3.86614706,16747.0,16746.0,0.00715985]
[1672730781792,4.00114706,16747.0,16746.0,0.00715985]
[1672730782040,3.86614706,16747.0,16746.0,0.00715985]
[1672730782286,3.99814706,16747.0,16746.0,0.00715985]
[1672730782534,3.86614706,16747.0,16746.0,0.00715985]
[1672730782785,3.94314706,16747.0,16746.0,0.00715985]
[1672730783545,3.94314706,16747.0,16746.0,0.00706592]
[1672730788295,3.86614706,16747.0,16746.0,0.00706592]
[1672730789091,3.94314706,16747.0,16746.0,0.00706592]
[1672730789344,3.83535743,16747.0,16746.0,0.00706592]
[1672730789594,3.88148243,16747.0,16746.0,0.00706592]
[1672730789847,3.83535743,16747.0,16746.0,0.00706592]
[1672730791356,3.80448243,16747.0,16746.0,0.00706592]
[1672730791643,3.93948243,16747.0,16746.0,0.00706592]
[1672730792371,3.80448243,16747.0,16746.0,0.00706592]
[1672730792619,3.88148243,16747.0,16746.0,0.00706592]
[1672730793116,3.93948243,16747.0,16746.0,0.00706592]
[1672730794604,3.80440941,16747.0,16746.0,0.00706592]
[1672730794867,3.88140941,16747.0,16746.0,0.00706592]
[1672730799518,3.83528441,16747.0,16746.0,0.00706592]
[1672730800031,4.22054968,16747.0,16746.0,0.00706592]
[1672730801296,3.83528441,16747.0,16746.0,0.00706592]
[1672730801860,4.22063938,16747.0,16746.0,0.00706592]
[1672730803574,3.89694904,16747.0,16746.0,0.00706592]
[1672730803829,3.83528441,16747.0,16746.0,0.00706592]
[1672730804081,3.88140941,16747.0,16746.0,0.00706592]
[1672730804582,3.80440941,16747.0,16746.0,0.00706592]
[1672730804837,3.81440941,16747.0,16746.0,0.00706592]
[1672730805597,3.80440941,16747.0,16746.0,0.00706592]
[1672730806109,3.61408895,16747.0,16746.0,0.00706592]
[1672730807132,3.53708895,16747.0,16746.0,0.00706592]
[1672730807394,3.67208895,16747.0,16746.0,0.00706592]
[1672730808151,3.53708895,16747.0,16746.0,0.00706592]
[1672730808409,3.61408895,16747.0,16746.0,0.00706592]
[1672730809162,3.56796395,16747.0,16746.0,0.00706592]
[1672730809674,3.67575358,16747.0,16746.0,0.00706592]
[1672730810953,3.62962858,16747.0,16746.0,0.00706592]
[1672730812033,3.67575358,16747.0,16746.0,0.00706592]
[1672730812804,3.95102963,16747.0,16746.0,0.00706592]
[1672730814236,3.67575358,16747.0,16746.0,0.00706592]
[1672730814710,3.95103073,16747.0,16746.0,0.00706592]
[1672730815444,3.95103073,16747.0,16746.0,0.00698113]
[1672730816193,3.94935976,16747.0,16746.0,0.00698113]
[1672730816871,3.67575358,16747.0,16746.0,0.00698113]
[1672730817873,3.87236923,16747.0,16746.0,0.00698113]
[1672730818099,4.00736923,16747.0,16746.0,0.00698113]
[1672730818364,3.87236923,16747.0,16746.0,0.00698113]
[1672730818609,3.94936923,16747.0,16746.0,0.00698113]
[1672730819536,3.67575358,16747.0,16746.0,0.00698113]
[1672730820511,3.94938345,16747.0,16746.0,0.00698113]
[1672730820769,3.87238345,16747.0,16746.0,0.00698113]
[1672730821025,4.00738345,16747.0,16746.0,0.00698113]
[1672730821281,3.87238345,16747.0,16746.0,0.00698113]
[1672730821530,3.94938345,16747.0,16746.0,0.00698113]
[1672730823149,3.67575358,16747.0,16746.0,0.00698113]
[1672730825408,3.59875358,16747.0,16746.0,0.00698113]
[1672730827184,3.60875358,16747.0,16746.0,0.00698113]
[1672730827908,3.56262858,16747.0,16746.0,0.00698113]
[1672730828173,3.55262858,16747.0,16746.0,0.00698113]
[1672730828431,3.67575358,16747.0,16746.0,0.00698113]
[1672730835556,3.59875358,16747.0,16746.0,0.00698113]
[1672730836493,3.60875358,16747.0,16746.0,0.00698113]
[1672730839079,3.88350788,16747.0,16746.0,0.00698113]
[1672730839346,3.88337616,16747.0,16746.0,0.00698113]
[1672730840930,3.87337616,16747.0,16746.0,0.00698113]
[1672730841410,3.67562186,16747.0,16746.0,0.00698113]
[1672730843231,3.56783223,16747.0,16746.0,0.00698113]
[1672730843479,3.49083223,16747.0,16746.0,0.00698113]
[1672730843812,3.50083223,16747.0,16746.0,0.00698113]
[1672730844273,3.54695723,16747.0,16746.0,0.00698113]
[1672730844535,3.50083223,16747.0,16746.0,0.00698113]
[1672730844790,3.54695723,16747.0,16746.0,0.00698113]
[1672730845625,3.50083223,16747.0,16746.0,0.00698113]
[1672730845871,3.53695723,16747.0,16746.0,0.00698113]
[1672730846137,3.61395723,16747.0,16746.0,0.00698113]
[1672730847185,3.9494545,16747.0,16746.0,0.00698113]
[1672730850051,3.67562186,16747.0,16746.0,0.00698113]
[1672730850581,3.95039404,16747.0,16746.0,0.00698113]
[1672730851324,3.67562186,16747.0,16746.0,0.00698113]
[1672730852591,3.95038132,16747.0,16746.0,0.00698113]
[1672730852842,3.87338132,16747.0,16746.0,0.00698113]
[1672730853096,4.00838132,16747.0,16746.0,0.00698113]
[1672730853350,3.87338132,16747.0,16746.0,0.00698113]
[1672730854376,3.95038132,16747.0,16746.0,0.00698113]
[1672730854836,3.87338132,16747.0,16746.0,0.00600582]
[1672730855047,3.95038132,16747.0,16746.0,0.00600582]
[1672730855846,3.62949686,16747.0,16746.0,0.00600582]
[1672730856087,3.56783223,16747.0,16746.0,0.00600582]
[1672730857090,3.61395723,16747.0,16746.0,0.00600582]
[1672730857589,3.56783223,16747.0,16746.0,0.00600582]
[1672730858084,3.61395723,16747.0,16746.0,0.00600582]
[1672730859869,3.95038132,16747.0,16746.0,0.00600582]
[1672730860627,3.67562186,16747.0,16746.0,0.00600582]
[1672730860879,3.56783223,16747.0,16746.0,0.00600582]
[1672730861388,3.67562186,16747.0,16746.0,0.00600582]
[1672730863916,3.95120186,16747.0,16746.0,0.00600582]
[1672730864173,3.67562186,16747.0,16746.0,0.00600582]
[1672730864414,3.95120223,16747.0,16746.0,0.00600582]
[1672730865404,3.95120223,16747.0,16746.0,0.00515954]
[1672730870553,3.67562186,16747.0,16746.0,0.00515954]
[1672730871817,3.62949686,16747.0,16746.0,0.00515954]
[1672730872071,3.56783223,16747.0,16746.0,0.00515954]
[1672730872574,3.56783223,16747.0,16746.0,0.70772108]
[1672730873099,3.61395723,16747.0,16746.0,0.70772108]
[1672730873601,3.61395723,16747.0,16746.0,1.40772108]
[1672730875405,3.48056399,16747.0,16746.0,1.40772108]
[1672730875689,3.48056399,16747.0,16746.0,2.00287161]
[1672730875690,4.0668461,16747.0,16746.0,2.00287161]
[1672730875915,3.7668461,16747.0,16746.0,2.61751161]
[1672730877215,4.0668461,16747.0,16746.0,2.61751161]
[1672730878784,3.16261204,16747.0,16746.0,2.61751161]
[1672730879033,3.16261204,16747.0,16746.0,2.00287161]
[1672730879779,2.56549104,16747.0,16746.0,2.61751161]
[1672730880026,2.56549104,16747.0,16746.0,2.00287161]
[1672730880532,2.56549104,16747.0,16746.0,2.61751161]
[1672730881314,2.56549104,16747.0,16746.0,2.00287161]
[1672730881572,2.56549104,16747.0,16746.0,2.61751161]
[1672730882072,3.10214747,16747.0,16746.0,2.97491161]
[1672730884651,3.10214747,16747.0,16746.0,2.36027161]
[1672730885420,2.56549104,16747.0,16746.0,2.36027161]
[1672730885688,2.56549104,16747.0,16746.0,2.97491161]
[1672730888491,3.01234127,16747.0,16746.0,2.97491161]
[1672730888717,3.01234127,16747.0,16746.0,2.36027161]
[1672730888963,2.56549104,16747.0,16746.0,2.36027161]
[1672730889471,2.56549104,16747.0,16746.0,2.36019074]
[1672730889985,2.56549104,16747.0,16746.0,2.97483074]
[1672730890490,2.56549104,16747.0,16746.0,2.36019074]
[1672730891743,3.01223404,16747.0,16746.0,2.36019074]
[1672730891994,2.56549104,16747.0,16746.0,2.36019074]
[1672730892242,2.56549104,16747.0,16746.0,2.97483074]
[1672730895734,2.56549104,16747.0,16746.0,2.36019074]
[1672730898764,2.56549104,16747.0,16746.0,2.18149074]
[1672730899794,1.96168181,16747.0,16746.0,2.18149074]
[1672730900062,2.4084019,16747.0,16746.0,2.18149074]
[1672730900332,1.96168181,16747.0,16746.0,1.48149074]
[1672730900597,2.40839271,16747.0,16746.0,1.48149074]
[1672730901923,1.96168181,16747.0,16746.0,1.48149074]
[1672730902176,1.96168181,16747.0,16746.0,2.18149074]
[1672730906187,2.49833824,16747.0,16746.0,2.18149074]
[1672730906689,1.96168181,16747.0,16746.0,2.18149074]
[1672730906940,1.96168181,16747.0,16746.0,2.79613074]
[1672730907193,1.96168181,16747.0,16746.0,2.18149074]
[1672730908003,1.96168181,16747.0,16746.0,1.48149074]
[1672730908520,1.96168181,16747.0,16746.0,2.18149074]
[1672730909080,2.49833824,16747.0,16746.0,2.00279074]
[1672730910649,2.49833824,16747.0,16746.0,2.00268181]
[1672730913851,1.96168181,16747.0,16746.0,2.00268181]
[1672730915629,2.49876304,16747.0,16746.0,2.00268181]
[1672730916912,1.96168181,16747.0,16746.0,2.00268181]
[1672730920705,2.26168181,16747.0,16746.0,2.00268181]
[1672730923311,2.86591587,16747.0,16746.0,1.30012027]
[1672730927999,2.91204087,16747.0,16746.0,0.70496974]
[1672730928211,2.30780681,16747.0,16746.0,0.70496974]
[1672730928742,2.26168181,16747.0,16746.0,0.70496974]
[1672730929535,2.86560815,16747.0,16746.0,0.70496974]
[1672730930820,2.86560815,16747.0,16746.0,1.40753128]
[1672730932609,2.86560815,16747.0,16746.0,1.40742013]
[1672730934643,2.86560815,16747.0,16746.0,1.9878006]
[1672730934896,2.86560815,16747.0,16746.0,1.28523906]
[1672730937497,2.26168181,16747.0,16746.0,1.28523906]
[1672730938033,2.86560815,16747.0,16746.0,1.28523906]
[1672730939316,2.86560815,16747.0,16746.0,0.58523906]
[1672730939649,2.26168181,16747.0,16746.0,1.28523906]
[1672730941930,2.86560815,16747.0,16746.0,1.28523906]
[1672730942192,2.26168181,16747.0,16746.0,1.28523906]
[1672730945321,2.26168181,16747.0,16746.0,0.58523906]
[1672730946628,1.96168181,16747.0,16746.0,1.28523906]
[1672730949303,2.49852804,16747.0,16746.0,1.28523906]
[1672730949551,1.96168181,16747.0,16746.0,1.28523906]
[1672730949808,1.96168181,16747.0,16746.0,1.89987906]
[1672730950306,2.26168181,16747.0,16746.0,1.89987906]
[1672730950564,2.26168181,16747.0,16746.0,1.28523906]
[1672730950826,1.96168181,16747.0,16746.0,1.22531052]
[1672730952598,2.49878833,16747.0,16746.0,1.22531052]
[1672730959675,2.49878833,16747.0,16746.0,0.52531052]
[1672730960711,2.49878833,16747.0,16746.0,1.22531052]
[1672730965509,2.51674028,16747.0,16746.0,1.22531052]
[1672730966824,2.51674028,16747.0,16746.0,0.52531052]
[1672730967597,2.81674028,16747.0,16746.0,0.52531052]
[1672730967853,2.81674028,16747.0,16746.0,1.22531052]
[1672730968101,2.27963376,16747.0,16746.0,1.22531052]
[1672730970154,2.8835601,16747.0,16746.0,1.22531052]
[1672730970672,2.8835601,16747.0,16746.0,0.7]
[1672730970958,2.9296851,16747.0,16746.0,0.7]
[1672730971786,2.8835601,16747.0,16746.0,1.39960682]
[1672730972490,2.94522473,16747.0,16746.0,0.7]
[1672730972702,2.99134973,16747.0,16746.0,0.7]
[1672730973425,2.8835601,16747.0,16746.0,0.7]
[1672730973916,2.9296851,16747.0,16746.0,0.7]
[1672730974464,2.9296851,16747.0,16746.0,0.69991751]
[1672730976203,3.03447385,16747.0,16746.0,0.69991751]
[1672730977243,3.03446219,16747.0,16746.0,0.69991751]
[1672730978780,3.03446219,16747.0,16745.0,1.33944985]
[1672730979029,0.3,16746.0,16745.0,1.33944985]
[1672730979297,1.20017875,16746.0,16745.0,1.33944985]
[1672730979546,1.7369531,16746.0,16745.0,1.33944985]
[1672730979801,1.20017875,16746.0,16745.0,2.03944985]
[1672730980054,1.80691761,16746.0,16745.0,2.03944985]
[1672730980773,1.81691496,16746.0,16745.0,2.03944985]
[1672730981030,1.28015372,16746.0,16745.0,2.03944985]
[1672730981274,2.17731072,16746.0,16745.0,2.03944985]
[1672730982030,2.7140394,16746.0,16745.0,2.03944985]
[1672730982277,2.4140394,16746.0,16745.0,2.03944985]
[1672730982789,2.87182907,16746.0,16745.0,0.7]
[1672730983061,3.72370838,16746.0,16745.0,0.7]
[1672730983306,3.42853858,16746.0,16745.0,0.55115718]
[1672730983558,3.1136191,16746.0,16745.0,0.55115718]
[1672730984057,3.1036191,16746.0,16745.0,0.55115718]
[1672730984302,3.2386191,16746.0,16745.0,0.55115718]
[1672730984559,3.54965363,16746.0,16745.0,0.55115718]
[1672730984805,3.2386191,16746.0,16745.0,0.55115718]
[1672730985555,3.2386191,16746.0,16744.0,0.01875097]
[1672730985797,1.08885559,16745.0,16744.0,0.01875097]
[1672730986051,2.92655959,16745.0,16744.0,0.71875097]
[1672730986307,2.95037629,16745.0,16744.0,0.71875097]
[1672730987309,3.08437629,16745.0,16744.0,0.71875097]
[1672730988287,2.4814207,16745.0,16744.0,0.71875097]
[1672730988540,2.28606875,16745.0,16744.0,0.71875097]
[1672730988805,2.3040207,16745.0,16744.0,0.71875097]
[1672730989049,2.2955207,16745.0,16744.0,2.13081131]
[1672730989307,2.83136938,16745.0,16744.0,1.43320907]
[1672730989803,2.78524438,16745.0,16744.0,2.13081131]
[1672730990326,2.79374438,16745.0,16744.0,2.13081131]
[1672730994554,2.49374438,16745.0,16744.0,2.13081131]
[1672730997038,1.9578957,16745.0,16744.0,2.13081131]
[1672730997801,2.0040207,16745.0,16744.0,2.13081131]
[1672730998072,1.95773414,16745.0,16744.0,2.13081131]
[1672730999811,2.79358282,16745.0,16744.0,2.13081131]
[1672731000065,2.49348234,16745.0,16744.0,1.84220501]
[1672731000878,1.95763366,16745.0,16744.0,1.84220501]
[1672731001138,1.93968171,16745.0,16744.0,1.84220501]
[1672731001382,1.93968171,16745.0,16744.0,1.84037284]
[1672731002855,2.0097532,16745.0,16744.0,1.84037284]
[1672731007973,2.0097532,16745.0,16744.0,1.41206034]
[1672731008225,2.0097532,16745.0,16744.0,2.11206034]
[1672731009775,2.54560188,16745.0,16744.0,2.11206034]
[1672731011564,2.84560188,16745.0,16744.0,2.11206034]
[1672731012334,2.86355383,16745.0,16744.0,2.11206034]
[1672731012583,2.86347649,16745.0,16744.0,2.11206034]
[1672731013853,2.90960149,16745.0,16744.0,2.11206034]
[1672731015895,2.86347649,16745.0,16744.0,2.11206034]
[1672731016428,2.84552454,16745.0,16744.0,2.11206034]
[1672731016946,2.54552454,16745.0,16744.0,2.11206034]
[1672731017720,2.84552454,16745.0,16744.0,2.11206034]
[1672731017969,2.54552454,16745.0,16744.0,2.11206034]
[1672731025571,2.54552454,16745.0,16744.0,1.41206034]
[1672731025829,2.54552454,16745.0,16744.0,2.11206034]
[1672731026139,2.54552454,16745.0,16744.0,2.72670034]
[1672731032015,2.54552454,16745.0,16744.0,2.02670034]
[1672731032274,2.54552454,16745.0,16744.0,1.41206034]
[1672731032750,2.54552454,16745.0,16744.0,2.11206034]
[1672731034530,2.54552454,16745.0,16744.0,0.7]
[1672731034790,2.37375281,16745.0,16744.0,0.7]
[1672731035098,2.9305834,16745.0,16744.0,0.7]
[1672731035319,2.37375281,16745.0,16744.0,0.7]
[1672731035835,2.37375281,16745.0,16744.0,0.69989388]
[1672731037653,2.97783365,16745.0,16744.0,0.69989388]
[1672731039377,2.37375281,16745.0,16744.0,0.69989388]
[1672731040148,3.1197447,16745.0,16744.0,0.69989388]
[1672731040425,3.6197447,16745.0,16744.0,0.69989388]
[1672731040678,3.01589257,16745.0,16744.0,0.69989388]
[1672731041460,5.49719244,16745.0,16743.0,0.03235428]
[1672731041714,1.3423,16744.0,16743.0,0.03235428]
[1672731041973,1.3423,16744.0,16743.0,0.73235428]
[1672731041974,2.73858388,16744.0,16743.0,0.73235428]
[1672731042226,2.73858388,16744.0,16742.0,0.0258076]
[1672731042227,4.40624703,16744.0,16742.0,0.0258076]
[1672731042480,1.07456183,16743.0,16742.0,0.0258076]
[1672731042778,3.28850821,16743.0,16742.0,0.0258076]
[1672731042992,3.30646016,16743.0,16742.0,0.0258076]
[1672731043514,3.73122607,16743.0,16742.0,0.0258076]
[1672731043761,3.71327412,16743.0,16742.0,0.0258076]
[1672731044036,3.84727412,16743.0,16742.0,0.0258076]
[1672731044268,3.34727412,16743.0,16742.0,0.0258076]
[1672731044525,3.36522607,16743.0,16742.0,0.0258076]
[1672731044773,3.18652607,16743.0,16742.0,0.0258076]
[1672731045012,2.28346016,16743.0,16742.0,0.0258076]
[1672731045269,2.22179553,16743.0,16742.0,0.0258076]
[1672731046262,3.05752356,16743.0,16742.0,0.0258076]
[1672731047291,2.96205356,16743.0,16742.0,0.0258076]
[1672731050068,2.42632553,16743.0,16742.0,0.0258076]
[1672731051901,2.42632553,16743.0,16742.0,0.0008076]
[1672731052155,2.92632553,16743.0,16742.0,0.0008076]
[1672731054744,3.72859144,16743.0,16742.0,0.0008076]
[1672731056322,4.22859144,16743.0,16742.0,0.00072685]
[1672731058928,4.10649961,16743.0,16742.0,0.00072685]
[1672731059188,4.21870203,16743.0,16742.0,0.00072685]
[1672731064283,4.20075008,16743.0,16742.0,0.00072685]
[1672731064531,4.20075008,16743.0,16742.0,0.00065417]
[1672731065034,4.28036666,16743.0,16742.0,0.00065417]
[1672731066777,4.70485886,16743.0,16742.0,0.00065417]
[1672731067528,4.81073147,16743.0,16742.0,0.00065417]
[1672731068788,4.70485886,16743.0,16742.0,0.00065417]
[1672731069033,4.84547235,16743.0,16742.0,0.00065417]
[1672731069283,4.24240644,16743.0,16742.0,0.00065417]
[1672731069764,4.8446909,16743.0,16742.0,0.00065417]
[1672731070033,4.30799628,16743.0,16742.0,0.00065417]
[1672731070283,3.70571182,16743.0,16742.0,0.00065417]
[1672731072534,3.70571182,16743.0,16742.0,0.00058876]
[1672731072825,3.56509833,16743.0,16742.0,0.00058876]
[1672731073378,3.69582704,16743.0,16742.0,0.00058876]
[1672731073581,3.56509833,16743.0,16742.0,0.00058876]
[1672731076886,4.05594983,16743.0,16742.0,0.00058876]
[1672731077392,4.58030441,16743.0,16742.0,0.00058876]
[1672731078445,4.12162076,16743.0,16742.0,0.00058876]
[1672731078696,3.58375468,16743.0,16742.0,0.00058876]
[1672731078947,3.52209005,16743.0,16742.0,0.00058876]
[1672731080525,3.52209005,16743.0,16742.0,0.00052876]
[1672731080781,3.82209005,16743.0,16742.0,0.00052876]
[1672731081074,3.88375468,16743.0,16742.0,0.00052876]
[1672731086632,3.38375468,16743.0,16742.0,0.00052876]
[1672731086873,3.32209005,16743.0,16742.0,0.00052876]
[1672731087117,3.38375468,16743.0,16742.0,0.00052876]
[1672731087376,2.88375468,16743.0,16742.0,0.00052876]
[1672731087871,2.64339005,16743.0,16742.0,0.00052876]
[1672731088117,2.64339005,16743.0,16740.0,1.1884879]
[1672731088359,0.91242555,16742.0,16740.0,1.1884879]
[1672731088612,1.79786975,16741.0,16740.0,1.1884879]
[1672731088878,1.80636975,16741.0,16740.0,1.88339576]
[1672731089368,2.34319366,16741.0,16740.0,1.88339576]
[1672731089622,2.34319148,16741.0,16740.0,1.88339576]
[1672731090139,1.88336975,16741.0,16740.0,1.88339576]
[1672731090400,2.42023559,16741.0,16740.0,1.88339576]
[1672731092913,2.42023559,16741.0,16740.0,1.88358345]
[1672731093928,2.42023559,16741.0,16740.0,1.88339576]
[1672731094933,2.71997059,16741.0,16740.0,1.88339576]
[1672731095692,2.41997059,16741.0,16740.0,1.88339576]
[1672731095947,2.71997059,16741.0,16740.0,1.88339576]
[1672731096226,2.41997059,16741.0,16740.0,1.88339576]
[1672731101564,0.62823059,16741.0,16740.0,1.88339576]
[1672731101813,2.42023559,16741.0,16740.0,1.88339576]
[1672731103073,2.42023559,16741.0,16740.0,2.58339576]
[1672731105171,2.72023559,16741.0,16740.0,2.58339576]
[1672731105968,2.42023559,16741.0,16740.0,2.58339576]
[1672731106749,2.72023559,16741.0,16740.0,2.58339576]
[1672731109841,2.72023559,16741.0,16740.0,1.88339576]
[1672731115387,2.42023559,16741.0,16740.0,1.88339576]
[1672731116883,2.42023559,16741.0,16740.0,1.88333546]
[1672731119856,2.42023559,16741.0,16740.0,2.58333546]
[1672731120129,2.42023559,16741.0,16740.0,3.19797546]
[1672731120633,2.42023559,16741.0,16740.0,2.58333546]
[1672731124985,1.88336975,16741.0,16740.0,3.19797546]
[1672731125499,2.42023559,16741.0,16740.0,3.19797546]
[1672731126272,2.42023559,16741.0,16740.0,2.58333546]
[1672731127267,1.28603475,16741.0,16740.0,2.76093546]
[1672731127526,1.28603475,16741.0,16740.0,2.67557546]
[1672731127778,1.82290059,16741.0,16740.0,2.06093546]
[1672731128540,1.82290059,16741.0,16740.0,2.76093546]
[1672731128792,1.82290059,16741.0,16740.0,3.37557546]
[1672731130294,1.28603475,16741.0,16740.0,3.37557546]
[1672731132152,1.82290059,16741.0,16740.0,3.37557546]
[1672731132423,1.28603475,16741.0,16740.0,3.37557546]
[1672731132925,1.82290059,16741.0,16740.0,3.37557546]
[1672731133915,1.28603475,16741.0,16740.0,3.37557546]
[1672731136202,1.28603475,16741.0,16740.0,2.76093546]
[1672731138192,1.28603475,16741.0,16740.0,3.37557546]
[1672731138995,1.28603475,16741.0,16740.0,3.37547124]
[1672731140116,1.28603475,16741.0,16740.0,2.67547124]
[1672731140360,1.28603475,16741.0,16740.0,2.06083124]
[1672731141128,1.28603475,16741.0,16740.0,2.76083124]
[1672731141375,1.28603475,16741.0,16740.0,3.37547124]
[1672731143515,1.82290059,16741.0,16740.0,3.37547124]
[1672731143771,1.82290059,16741.0,16740.0,2.76083124]
[1672731145049,1.81440059,16741.0,16740.0,2.76083124]
[1672731151976,1.81440059,16741.0,16740.0,2.06083124]
[1672731152630,1.81440059,16741.0,16740.0,1.88323124]
[1672731152802,1.81440059,16741.0,16740.0,2.58323124]
[1672731153452,1.90962605,16741.0,16740.0,2.58323124]
[1672731156153,1.90962605,16741.0,16740.0,2.58257489]
[1672731159059,1.90962605,16741.0,16740.0,1.88257489]
[1672731160041,1.90962605,16741.0,16740.0,2.58257489]
[1672731162075,1.37276021,16741.0,16740.0,2.58250115]
[1672731163086,1.37276021,16741.0,16740.0,1.88824964]
[1672731163087,2.27009521,16741.0,16740.0,1.88824964]
[1672731163336,2.28804716,16741.0,16740.0,2.58262304]
[1672731164856,2.28804716,16741.0,16740.0,1.88262304]
[1672731166597,2.28804716,16741.0,16740.0,0.02556934]
[1672731166910,3.05676304,16741.0,16740.0,0.02556934]
[1672731172123,3.01063804,16741.0,16740.0,0.02556934]
[1672731172375,3.05676304,16741.0,16740.0,0.02556934]
[1672731178821,3.23546304,16741.0,16740.0,0.02556934]
[1672731181987,3.23535181,16741.0,16740.0,0.02556934]
[1672731184000,0.605835,16741.0,16740.0,0.02556934]
[1672731184254,1.20914372,16741.0,16740.0,0.71759384]
[1672731184513,1.22709567,16741.0,16740.0,0.71759384]
[1672731185037,1.82443067,16741.0,16740.0,0.71759384]
[1672731185240,2.12443067,16741.0,16740.0,0.71759384]
[1672731188802,2.30183067,16741.0,16740.0,0.71759384]
[1672731195001,2.30183067,16741.0,16740.0,0.02556934]
[1672731201049,2.90574185,16741.0,16740.0,0.02556934]
[1672731201737,2.30183067,16741.0,16740.0,0.02556934]
[1672731206588,2.30183067,16741.0,16740.0,0.02545017]
[1672731218706,2.12443067,16741.0,16740.0,0.02545017]
[1672731222725,2.12443067,16741.0,16740.0,0.03245017]
[1672731222726,2.20043067,16741.0,16740.0,0.03245017]
[1672731222973,2.12443067,16741.0,16740.0,0.02545017]
[1672731223232,2.12643067,16741.0,16740.0,0.04145017]
[1672731223726,2.12443067,16741.0,16740.0,0.02545017]
[1672731224037,2.20043067,16741.0,16740.0,0.03245017]
[1672731224281,2.12443067,16741.0,16740.0,0.02545017]
[1672731225320,2.12643067,16741.0,16740.0,0.04145017]
[1672731231490,2.12643067,16741.0,16740.0,0.04133787]
[1672731233464,2.16091358,16741.0,16740.0,0.04133787]
[1672731233718,2.46091358,16741.0,16740.0,0.04133787]
[1672731233952,2.16091358,16741.0,16740.0,0.04133787]
[1672731235224,2.46091358,16741.0,16740.0,0.04133787]
[1672731235972,2.16091358,16741.0,16740.0,0.04133787]
[1672731236473,2.46091358,16741.0,16740.0,0.04133787]
[1672731237466,2.16091358,16741.0,16740.0,0.04133787]
[1672731237967,2.36091358,16741.0,16740.0,0.04133787]
[1672731238483,2.53961358,16741.0,16740.0,0.04133787]
[1672731238698,2.33961358,16741.0,16740.0,0.04133787]
[1672731240404,2.53961358,16741.0,16740.0,0.04133787]
[1672731240859,2.33961358,16741.0,16740.0,0.04133787]
[1672731241168,2.16091358,16741.0,16740.0,0.04133787]
[1672731243240,2.36091358,16741.0,16740.0,0.04133787]
[1672731246471,2.16091358,16741.0,16740.0,0.04133787]
[1672731250486,2.16091358,16741.0,16740.0,0.03720409]
[1672731250765,2.66091358,16741.0,16740.0,0.03720409]
[1672731251494,2.88046804,16741.0,16740.0,0.03720409]
[1672731252008,2.38046804,16741.0,16740.0,0.03720409]
[1672731252253,2.36091358,16741.0,16740.0,0.03720409]
[1672731252993,2.16091358,16741.0,16740.0,0.03720409]
[1672731253241,2.56091358,16741.0,16740.0,0.03720409]
[1672731253487,2.16091358,16741.0,16740.0,0.03720409]
[1672731253979,2.36091358,16741.0,16740.0,0.03720409]
[1672731254223,2.77956662,16741.0,16740.0,0.03720409]
[1672731254478,2.36091358,16741.0,16740.0,0.03720409]
[1672731254965,2.16091358,16741.0,16740.0,0.03720409]
[1672731258467,2.66091358,16741.0,16740.0,0.03348369]
[1672731258707,2.33961358,16741.0,16740.0,0.03348369]
[1672731259257,2.63961358,16741.0,16740.0,0.03348369]
[1672731259773,2.53961358,16741.0,16740.0,0.03348369]
[1672731260533,2.33961358,16741.0,16740.0,0.03348369]
[1672731260754,2.83961358,16741.0,16740.0,0.03348369]
[1672731261512,2.33961358,16741.0,16740.0,0.03348369]
[1672731261761,2.53961358,16741.0,16740.0,0.03348369]
[1672731262000,2.33961358,16741.0,16740.0,0.03348369]
[1672731262518,2.99303913,16741.0,16740.0,0.03348369]
[1672731262767,2.32166163,16741.0,16740.0,0.03348369]
[1672731263274,2.33961358,16741.0,16740.0,0.03348369]
[1672731267068,2.16091358,16741.0,16740.0,0.03348369]
[1672731268549,2.14296163,16741.0,16740.0,0.03348369]
[1672731269305,2.16091358,16741.0,16740.0,0.03348369]
[1672731274672,2.14296163,16741.0,16740.0,0.03348369]
[1672731275186,2.16091358,16741.0,16740.0,0.03348369]
[1672731279877,2.66091358,16741.0,16740.0,0.03013533]
[1672731280138,2.16091358,16741.0,16740.0,0.03013533]
[1672731280654,2.34296163,16741.0,16740.0,0.02513533]
[1672731280915,2.14296163,16741.0,16740.0,0.02513533]
[1672731281169,2.16091358,16741.0,16740.0,0.02513533]
[1672731282165,2.56091358,16741.0,16740.0,0.02513533]
[1672731282654,2.87586287,16741.0,16740.0,0.02513533]
[1672731283161,3.70589519,16741.0,16740.0,0.02513533]
[1672731283944,4.15817316,16741.0,16740.0,0.02513533]
[1672731284695,3.75817316,16741.0,16740.0,0.02513533]
[1672731285193,3.52544965,16741.0,16740.0,0.02513533]
[1672731285696,2.78178919,16741.0,16740.0,0.02513533]
[1672731287928,2.78178919,16741.0,16740.0,0.0226218]
[1672731288926,2.4668399,16741.0,16740.0,0.0226218]
[1672731289178,2.30896215,16741.0,16740.0,0.0226218]
[1672731291151,2.4668399,16741.0,16740.0,0.0226218]
[1672731291407,2.30896215,16741.0,16740.0,0.0226218]
[1672731291643,2.24728544,16741.0,16740.0,0.0226218]
[1672731295893,2.54728544,16741.0,16740.0,0.02035963]
[1672731296621,2.7668399,16741.0,16740.0,0.02035963]
[1672731297132,2.4668399,16741.0,16740.0,0.02035963]
[1672731297639,2.24728544,16741.0,16740.0,0.02035963]
[1672731298645,2.54728544,16741.0,16740.0,0.02035963]
[1672731298899,3.37731776,16741.0,16740.0,0.02035963]
[1672731299680,3.83763894,16741.0,16740.0,0.02035963]
[1672731299956,3.07731776,16741.0,16740.0,0.02035963]
[1672731300958,2.24728544,16741.0,16740.0,0.02035963]
[1672731301450,2.54728544,16741.0,16740.0,0.02035963]
[1672731301699,2.7668399,16741.0,16740.0,0.02035963]
[1672731301943,2.4668399,16741.0,16740.0,0.02035963]
[1672731302436,2.30896215,16741.0,16740.0,0.02035963]
[1672731302678,2.24728544,16741.0,16740.0,0.02035963]
[1672731317884,2.24728544,16741.0,16740.0,0.70605307]
[1672731318150,2.85151994,16741.0,16740.0,0.70605307]
[1672731318594,2.85151994,16741.0,16740.0,1.32267465]
[1672731319060,2.85151994,16741.0,16740.0,1.32257791]
[1672731319352,2.24728544,16741.0,16740.0,0.63688447]
[1672731319595,2.24728544,16741.0,16740.0,0.02026289]